[Event "Titled Tuesday Blitz July 25 Early 2023"]
[White "Kleiman, Jake"]
[Black "Cooper, Aaron"]
[WhiteFideId "2020041"]
[BlackFideId "2634945"]
[WhiteElo "2483"]
[BlackElo "2296"]
[Result "1-0"]
[Round "2"]
[TimeControl "180+2"]
[Date "2023.07.25"]
[WhiteClock "0:00:12"]
[BlackClock "0:00:08"]
[Board "198"]

1. e4 {[%clk 0:02:40]}  d5 {[%clk 0:02:59]} 2. exd5 {[%clk 0:02:40]}  Qxd5 {[%clk 0:03:00]} 3. Nc3 {[%clk 0:02:39]}  Qd6 {[%clk 0:03:00]} 4. d4 {[%clk 0:02:40]}  Nf6 {[%clk 0:02:59]} 5. Nf3 {[%clk 0:02:40]}  a6 {[%clk 0:02:59]} 6. Ne5 {[%clk 0:02:40]}  Nc6 {[%clk 0:02:52]} 7. Nxc6 {[%clk 0:02:38]}  Qxc6 {[%clk 0:02:51]} 8. Bf4 {[%clk 0:02:36]}  Bg4 {[%clk 0:02:43]} 9. f3 {[%clk 0:02:31]}  Bf5 {[%clk 0:02:42]} 10. Qe2 {[%clk 0:02:15]}  O-O-O {[%clk 0:02:36]} 11. O-O-O {[%clk 0:02:15]}  e6 {[%clk 0:02:35]} 12. g3 {[%clk 0:02:07]}  Bb4 {[%clk 0:02:31]} 13. Qc4 {[%clk 0:01:44]}  Qxc4 {[%clk 0:02:15]} 14. Bxc4 {[%clk 0:01:42]}  Bxc3 {[%clk 0:02:15]} 15. bxc3 {[%clk 0:01:43]}  Nd5 {[%clk 0:02:15]} 16. Bd2 {[%clk 0:01:42]}  h6 {[%clk 0:02:04]} 17. Rhe1 {[%clk 0:01:39]}  Rhe8 {[%clk 0:02:00]} 18. Bb3 {[%clk 0:01:38]}  Nb6 {[%clk 0:01:45]} 19. g4 {[%clk 0:01:31]}  Bg6 {[%clk 0:01:45]} 20. Kb2 {[%clk 0:01:25]}  Rd7 {[%clk 0:01:36]} 21. Be3 {[%clk 0:01:25]}  Red8 {[%clk 0:01:36]} 22. c4 {[%clk 0:01:22]}  c5 {[%clk 0:01:28]} 23. c3 {[%clk 0:01:21]}  cxd4 {[%clk 0:01:22]} 24. cxd4 {[%clk 0:01:18]}  Rc7 {[%clk 0:01:18]} 25. Rc1 {[%clk 0:01:13]}  Nd7 {[%clk 0:01:08]} 26. Bf4 {[%clk 0:00:58]}  e5 {[%clk 0:00:49]} 27. Bxe5 {[%clk 0:00:55]}  Nxe5 {[%clk 0:00:49]} 28. dxe5 {[%clk 0:00:56]}  Rd2+ {[%clk 0:00:43]} 29. Ka3 {[%clk 0:00:57]}  Rxh2 {[%clk 0:00:39]} 30. c5 {[%clk 0:00:57]}  Rf2 {[%clk 0:00:34]} 31. Re3 {[%clk 0:00:57]}  h5 {[%clk 0:00:30]} 32. Kb4 {[%clk 0:00:48]}  hxg4 {[%clk 0:00:29]} 33. fxg4 {[%clk 0:00:49]}  Rf4+ {[%clk 0:00:29]} 34. Rc4 {[%clk 0:00:50]}  Rf2 {[%clk 0:00:20]} 35. Rd4 {[%clk 0:00:47]}  Rd7 {[%clk 0:00:19]} 36. Rxd7 {[%clk 0:00:38]}  Kxd7 {[%clk 0:00:19]} 37. Ka5 {[%clk 0:00:33]}  Rf4 {[%clk 0:00:18]} 38. Kb6 {[%clk 0:00:30]}  Rxg4 {[%clk 0:00:17]} 39. Kxb7 {[%clk 0:00:26]}  Be4+ {[%clk 0:00:16]} 40. Kb6 {[%clk 0:00:23]}  Rg6+ {[%clk 0:00:14]} 41. Ka7 {[%clk 0:00:20]}  f5 {[%clk 0:00:10]} 42. e6+ {[%clk 0:00:17]}  Ke7 {[%clk 0:00:10]} 43. Rxe4 {[%clk 0:00:15]}  fxe4 {[%clk 0:00:10]} 44. c6 {[%clk 0:00:16]}  Kd6 {[%clk 0:00:07]} 45. Kb7 {[%clk 0:00:15]}  Rg1 {[%clk 0:00:05]} 46. e7 {[%clk 0:00:12]}  Kxe7 {[%clk 0:00:04]} 47. c7 {[%clk 0:00:13]}  Rc1 {[%clk 0:00:04]} 48. c8=Q {[%clk 0:00:13]}  Rxc8 {[%clk 0:00:04]} 49. Kxc8 {[%clk 0:00:14]}  e3 {[%clk 0:00:05]} 50. Bc4 {[%clk 0:00:15]}  a5 {[%clk 0:00:05]} 51. Kb7 {[%clk 0:00:12]}  g5 {[%clk 0:00:05]} 52. Be2 {[%clk 0:00:11]}  Kf6 {[%clk 0:00:06]} 53. Ka6 {[%clk 0:00:11]}  Ke5 {[%clk 0:00:07]} 54. Kxa5 {[%clk 0:00:12]}  Kf4 {[%clk 0:00:08]} 55. Kb4 {[%clk 0:00:11]}  Kg3 {[%clk 0:00:09]} 56. Kc3 {[%clk 0:00:11]}  Kf2 {[%clk 0:00:10]} 57. Kd3 {[%clk 0:00:11]}  Kg3 {[%clk 0:00:06]} 58. Kxe3 {[%clk 0:00:11]}  g4 {[%clk 0:00:06]} 59. a4 {[%clk 0:00:11]}  Kh3 {[%clk 0:00:06]} 60. a5 {[%clk 0:00:11]}  g3 {[%clk 0:00:07]} 61. Bf3 {[%clk 0:00:11]}  g2 {[%clk 0:00:08]} 62. Kf2 {[%clk 0:00:10]}  g1=Q+ {[%clk 0:00:06]} 63. Kxg1 {[%clk 0:00:09]}  Kh4 {[%clk 0:00:06]} 64. a6 {[%clk 0:00:10]}  Kh3 {[%clk 0:00:07]} 65. a7 {[%clk 0:00:10]}  Kh4 {[%clk 0:00:08]} 66. a8=Q {[%clk 0:00:11]}  Kh3 {[%clk 0:00:08]} 67. Qg8 {[%clk 0:00:11]}  Kh4 {[%clk 0:00:08]} 68. Qg4# {[%clk 0:00:12]} 1-0


[Site "https://www.chess.com"]

[Event "Titled Tuesday Blitz July 25 Early 2023"]
[White "Erzhanov, Arman"]
[Black "Fernandez Siles, Luis"]
[WhiteFideId "4138821"]
[BlackFideId "2209420"]
[WhiteElo "2482"]
[BlackElo "2290"]
[Result "1/2-1/2"]
[Round "2"]
[TimeControl "180+2"]
[Date "2023.07.25"]
[WhiteClock "0:00:33"]
[BlackClock "0:00:12"]
[Board "200"]

1. e4 {[%clk 0:03:00]}  c5 {[%clk 0:02:59]} 2. Nf3 {[%clk 0:03:00]}  Nc6 {[%clk 0:02:59]} 3. Bb5 {[%clk 0:03:00]}  g6 {[%clk 0:02:58]} 4. O-O {[%clk 0:03:01]}  Bg7 {[%clk 0:02:58]} 5. c3 {[%clk 0:03:01]}  Nf6 {[%clk 0:02:58]} 6. Qa4 {[%clk 0:03:02]}  O-O {[%clk 0:02:50]} 7. d4 {[%clk 0:03:02]}  cxd4 {[%clk 0:02:46]} 8. cxd4 {[%clk 0:03:03]}  d5 {[%clk 0:02:37]} 9. e5 {[%clk 0:03:03]}  Ne4 {[%clk 0:02:37]} 10. Bxc6 {[%clk 0:03:03]}  bxc6 {[%clk 0:02:38]} 11. Qxc6 {[%clk 0:03:04]}  Rb8 {[%clk 0:02:29]} 12. Nc3 {[%clk 0:03:00]}  Bb7 {[%clk 0:02:10]} 13. Qa4 {[%clk 0:02:58]}  Qb6 {[%clk 0:01:59]} 14. Qa3 {[%clk 0:02:47]}  Rfe8 {[%clk 0:01:43]} 15. Be3 {[%clk 0:02:23]}  e6 {[%clk 0:01:23]} 16. Rfc1 {[%clk 0:02:17]}  Bf8 {[%clk 0:01:20]} 17. Qb3 {[%clk 0:01:59]}  Qxb3 {[%clk 0:01:13]} 18. axb3 {[%clk 0:01:59]}  a6 {[%clk 0:01:03]} 19. Nd2 {[%clk 0:01:28]}  Nxd2 {[%clk 0:01:01]} 20. Bxd2 {[%clk 0:01:28]}  Bc8 {[%clk 0:01:02]} 21. Nd1 {[%clk 0:01:04]}  Rxb3 {[%clk 0:01:01]} 22. Bc3 {[%clk 0:01:04]}  Bb4 {[%clk 0:00:43]} 23. Kf1 {[%clk 0:00:56]}  Bxc3 {[%clk 0:00:42]} 24. bxc3 {[%clk 0:00:55]}  Bb7 {[%clk 0:00:30]} 25. Rcb1 {[%clk 0:00:53]}  Rb5 {[%clk 0:00:21]} 26. Rxb5 {[%clk 0:00:43]}  axb5 {[%clk 0:00:21]} 27. Ra7 {[%clk 0:00:41]}  Rb8 {[%clk 0:00:22]} 28. Nb2 {[%clk 0:00:37]}  b4 {[%clk 0:00:18]} 29. cxb4 {[%clk 0:00:37]}  Bc6 {[%clk 0:00:19]} 30. Nd3 {[%clk 0:00:29]}  Bb5 {[%clk 0:00:18]} 31. Ke2 {[%clk 0:00:30]}  Bxd3+ {[%clk 0:00:18]} 32. Kxd3 {[%clk 0:00:31]}  Rxb4 {[%clk 0:00:19]} 33. h4 {[%clk 0:00:30]}  Rb3+ {[%clk 0:00:18]} 34. Ke2 {[%clk 0:00:30]}  Rb2+ {[%clk 0:00:18]} 35. Ke3 {[%clk 0:00:30]}  h5 {[%clk 0:00:18]} 36. Ra4 {[%clk 0:00:28]}  Rb3+ {[%clk 0:00:17]} 37. Kf4 {[%clk 0:00:27]}  Kg7 {[%clk 0:00:17]} 38. f3 {[%clk 0:00:27]}  Rd3 {[%clk 0:00:17]} 39. g4 {[%clk 0:00:28]}  hxg4 {[%clk 0:00:17]} 40. fxg4 {[%clk 0:00:28]}  Rh3 {[%clk 0:00:17]} 41. Kg5 {[%clk 0:00:29]}  Rd3 {[%clk 0:00:14]} 42. Rb4 {[%clk 0:00:29]}  Rd1 {[%clk 0:00:14]} 43. h5 {[%clk 0:00:29]}  gxh5 {[%clk 0:00:14]} 44. Kxh5 {[%clk 0:00:29]}  Rh1+ {[%clk 0:00:13]} 45. Kg5 {[%clk 0:00:30]}  Rd1 {[%clk 0:00:13]} 46. Kf4 {[%clk 0:00:30]}  Rf1+ {[%clk 0:00:13]} 47. Kg5 {[%clk 0:00:31]}  Rd1 {[%clk 0:00:13]} 48. Ra4 {[%clk 0:00:31]}  Rd2 {[%clk 0:00:12]} 49. Kh5 {[%clk 0:00:32]}  Rh2+ {[%clk 0:00:12]} 50. Kg5 {[%clk 0:00:32]}  Rd2 {[%clk 0:00:12]} 51. Rb4 {[%clk 0:00:33]}  Rd1 {[%clk 0:00:12]} 1/2-1/2


[Site "https://www.chess.com"]

[Event "Titled Tuesday Blitz July 25 Early 2023"]
[White "Barwinska, Ewa"]
[Black "Kirillov, Dmitry"]
[WhiteFideId "21833761"]
[BlackFideId "34180572"]
[WhiteElo "2288"]
[BlackElo "2482"]
[Result "0-1"]
[Round "2"]
[TimeControl "180+2"]
[Date "2023.07.25"]
[WhiteClock "0:00:01"]
[BlackClock "0:00:11"]
[Board "201"]

1. d4 {[%clk 0:02:59]}  Nf6 {[%clk 0:02:59]} 2. c4 {[%clk 0:02:52]}  e6 {[%clk 0:02:58]} 3. Nc3 {[%clk 0:02:48]}  Bb4 {[%clk 0:02:58]} 4. Nf3 {[%clk 0:02:44]}  b6 {[%clk 0:02:56]} 5. e3 {[%clk 0:02:43]}  Bb7 {[%clk 0:02:54]} 6. Be2 {[%clk 0:02:41]}  Ne4 {[%clk 0:02:53]} 7. Bd2 {[%clk 0:02:40]}  Nxd2 {[%clk 0:02:53]} 8. Qxd2 {[%clk 0:02:40]}  O-O {[%clk 0:02:53]} 9. a3 {[%clk 0:02:40]}  Be7 {[%clk 0:02:53]} 10. O-O {[%clk 0:02:39]}  d6 {[%clk 0:02:53]} 11. e4 {[%clk 0:02:38]}  Nd7 {[%clk 0:02:54]} 12. Bd3 {[%clk 0:02:34]}  e5 {[%clk 0:02:54]} 13. Rfe1 {[%clk 0:02:30]}  Bf6 {[%clk 0:02:50]} 14. Bf1 {[%clk 0:02:26]}  g6 {[%clk 0:02:48]} 15. Rad1 {[%clk 0:02:19]}  Bg7 {[%clk 0:02:48]} 16. b4 {[%clk 0:02:19]}  a5 {[%clk 0:02:48]} 17. b5 {[%clk 0:02:18]}  exd4 {[%clk 0:02:47]} 18. Nxd4 {[%clk 0:02:17]}  Nc5 {[%clk 0:02:47]} 19. Nd5 {[%clk 0:02:06]}  Bxd5 {[%clk 0:02:44]} 20. cxd5 {[%clk 0:02:05]}  Qf6 {[%clk 0:02:32]} 21. Nc6 {[%clk 0:02:01]}  Qc3 {[%clk 0:02:29]} 22. Qxc3 {[%clk 0:01:55]}  Bxc3 {[%clk 0:02:30]} 23. Re3 {[%clk 0:01:55]}  Bg7 {[%clk 0:02:29]} 24. f4 {[%clk 0:01:48]}  Rfe8 {[%clk 0:02:26]} 25. e5 {[%clk 0:01:46]}  f6 {[%clk 0:02:02]} 26. e6 {[%clk 0:01:38]}  f5 {[%clk 0:02:02]} 27. g3 {[%clk 0:01:25]}  Bf6 {[%clk 0:02:01]} 28. Bd3 {[%clk 0:01:14]}  Kg7 {[%clk 0:01:50]} 29. Bc2 {[%clk 0:01:14]}  h6 {[%clk 0:01:48]} 30. Kg2 {[%clk 0:01:08]}  h5 {[%clk 0:01:47]} 31. Kf3 {[%clk 0:01:06]}  Rh8 {[%clk 0:01:39]} 32. h3 {[%clk 0:01:03]}  Rag8 {[%clk 0:01:34]} 33. Rg1 {[%clk 0:00:52]}  Kf8 {[%clk 0:01:34]} 34. g4 {[%clk 0:00:42]}  hxg4+ {[%clk 0:01:34]} 35. hxg4 {[%clk 0:00:43]}  Rh3+ {[%clk 0:01:34]} 36. Rg3 {[%clk 0:00:44]}  Rh2 {[%clk 0:00:59]} 37. Rg2 {[%clk 0:00:40]}  fxg4+ {[%clk 0:00:58]} 38. Kg3 {[%clk 0:00:33]}  Rh3+ {[%clk 0:00:51]} 39. Kf2 {[%clk 0:00:34]}  g3+ {[%clk 0:00:48]} 40. Ke2 {[%clk 0:00:34]}  Bh4 {[%clk 0:00:41]} 41. f5 {[%clk 0:00:26]}  gxf5 {[%clk 0:00:35]} 42. Bxf5 {[%clk 0:00:26]}  Rh1 {[%clk 0:00:27]} 43. e7+ {[%clk 0:00:12]}  Ke8 {[%clk 0:00:26]} 44. Be6 {[%clk 0:00:13]}  Nxe6 {[%clk 0:00:16]} 45. Rxe6 {[%clk 0:00:12]}  Rg7 {[%clk 0:00:14]} 46. Rh6 {[%clk 0:00:09]}  Kd7 {[%clk 0:00:08]} 47. Rh8 {[%clk 0:00:06]}  Rxe7+ {[%clk 0:00:05]} 48. Nxe7 {[%clk 0:00:06]}  Kxe7 {[%clk 0:00:06]} 49. Rh7+ {[%clk 0:00:06]}  Kf6 {[%clk 0:00:06]} 50. Rxg3 {[%clk 0:00:06]}  Rh2+ {[%clk 0:00:06]} 51. Kf3 {[%clk 0:00:07]}  Bxg3 {[%clk 0:00:07]} 52. Rxc7 {[%clk 0:00:05]}  Be5 {[%clk 0:00:07]} 53. Rc6 {[%clk 0:00:05]}  Ra2 {[%clk 0:00:08]} 54. Rxb6 {[%clk 0:00:05]}  Rxa3+ {[%clk 0:00:08]} 55. Ke4 {[%clk 0:00:06]}  Rb3 {[%clk 0:00:09]} 56. Rb8 {[%clk 0:00:03]}  a4 {[%clk 0:00:09]} 57. b6 {[%clk 0:00:03]}  a3 {[%clk 0:00:09]} 58. Ra8 {[%clk 0:00:04]}  Rxb6 {[%clk 0:00:09]} 59. Rxa3 {[%clk 0:00:04]}  Rb4+ {[%clk 0:00:09]} 60. Kf3 {[%clk 0:00:04]}  Kf5 {[%clk 0:00:10]} 61. Rd3 {[%clk 0:00:03]}  Rd4 {[%clk 0:00:10]} 62. Rxd4 {[%clk 0:00:01]}  Bxd4 {[%clk 0:00:11]} 63. Ke2 {[%clk 0:00:01]}  Ke4 {[%clk 0:00:11]} 0-1


[Site "https://www.chess.com"]

[Event "Titled Tuesday Blitz July 25 Early 2023"]
[White "Zaksaite, Salomeja"]
[Black "Heinemann, Josefine"]
[WhiteFideId "12801496"]
[BlackFideId "12900460"]
[WhiteElo "2276"]
[BlackElo "2480"]
[Result "1-0"]
[Round "2"]
[TimeControl "180+2"]
[Date "2023.07.25"]
[WhiteClock "0:00:05"]
[BlackClock "0:00:09"]
[Board "203"]

1. e4 {[%clk 0:02:57]}  c5 {[%clk 0:02:59]} 2. Nf3 {[%clk 0:02:57]}  d6 {[%clk 0:02:58]} 3. d4 {[%clk 0:02:57]}  cxd4 {[%clk 0:02:58]} 4. Nxd4 {[%clk 0:02:57]}  Nf6 {[%clk 0:02:59]} 5. Nc3 {[%clk 0:02:57]}  a6 {[%clk 0:02:58]} 6. Bc4 {[%clk 0:02:57]}  e6 {[%clk 0:02:58]} 7. Bb3 {[%clk 0:02:55]}  b5 {[%clk 0:02:57]} 8. O-O {[%clk 0:02:53]}  Bb7 {[%clk 0:02:57]} 9. Re1 {[%clk 0:02:49]}  Nc6 {[%clk 0:02:53]} 10. Nxc6 {[%clk 0:02:48]}  Bxc6 {[%clk 0:02:51]} 11. Nd5 {[%clk 0:02:38]}  Be7 {[%clk 0:02:41]} 12. Nxe7 {[%clk 0:02:35]}  Qxe7 {[%clk 0:02:41]} 13. Bg5 {[%clk 0:02:33]}  Rd8 {[%clk 0:02:36]} 14. Qf3 {[%clk 0:01:48]}  h6 {[%clk 0:02:34]} 15. Bf4 {[%clk 0:01:34]}  O-O {[%clk 0:02:31]} 16. c3 {[%clk 0:01:28]}  Nd7 {[%clk 0:01:46]} 17. Qg3 {[%clk 0:01:16]}  Nc5 {[%clk 0:01:34]} 18. Bxh6 {[%clk 0:01:11]}  f6 {[%clk 0:01:34]} 19. Bc2 {[%clk 0:01:02]}  e5 {[%clk 0:01:30]} 20. b4 {[%clk 0:00:56]}  Ne6 {[%clk 0:01:30]} 21. Bb3 {[%clk 0:00:54]}  Kh7 {[%clk 0:01:30]} 22. Bxg7 {[%clk 0:00:36]}  Nxg7 {[%clk 0:01:06]} 23. Qh4+ {[%clk 0:00:34]}  Kg6 {[%clk 0:01:06]} 24. Re3 {[%clk 0:00:30]}  Nh5 {[%clk 0:01:06]} 25. Qg4+ {[%clk 0:00:29]}  Kh6 {[%clk 0:01:07]} 26. Rh3 {[%clk 0:00:27]}  Be8 {[%clk 0:01:05]} 27. Bd1 {[%clk 0:00:10]}  Rh8 {[%clk 0:00:31]} 28. Rxh5+ {[%clk 0:00:03]}  Bxh5 {[%clk 0:00:32]} 29. Qxh5+ {[%clk 0:00:04]}  Kg7 {[%clk 0:00:32]} 30. Qg4+ {[%clk 0:00:04]}  Kf8 {[%clk 0:00:32]} 31. Bb3 {[%clk 0:00:04]}  Qg7 {[%clk 0:00:27]} 32. Qf5 {[%clk 0:00:03]}  Qh6 {[%clk 0:00:20]} 33. h3 {[%clk 0:00:02]}  Qg5 {[%clk 0:00:19]} 34. Qe6 {[%clk 0:00:02]}  Qg7 {[%clk 0:00:15]} 35. Rd1 {[%clk 0:00:02]}  Qe7 {[%clk 0:00:14]} 36. Qf5 {[%clk 0:00:01]}  Rh7 {[%clk 0:00:14]} 37. Rd3 {[%clk 0:00:01]}  Rg7 {[%clk 0:00:14]} 38. Rf3 {[%clk 0:00:02]}  Rd7 {[%clk 0:00:10]} 39. g3 {[%clk 0:00:02]}  Rc7 {[%clk 0:00:09]} 40. h4 {[%clk 0:00:02]}  Ke8 {[%clk 0:00:07]} 41. Bd5 {[%clk 0:00:03]}  Kd8 {[%clk 0:00:07]} 42. h5 {[%clk 0:00:03]}  Rg5 {[%clk 0:00:04]} 43. Qxf6 {[%clk 0:00:02]}  Qxf6 {[%clk 0:00:05]} 44. Rxf6 {[%clk 0:00:03]}  Rxh5 {[%clk 0:00:05]} 45. Rxd6+ {[%clk 0:00:03]}  Rd7 {[%clk 0:00:05]} 46. Rxa6 {[%clk 0:00:04]}  Rc7 {[%clk 0:00:05]} 47. Ra8+ {[%clk 0:00:04]}  Ke7 {[%clk 0:00:05]} 48. Rb8 {[%clk 0:00:04]}  Rxc3 {[%clk 0:00:05]} 49. Rxb5 {[%clk 0:00:04]}  Rc1+ {[%clk 0:00:06]} 50. Kg2 {[%clk 0:00:04]}  Rhh1 {[%clk 0:00:06]} 51. a4 {[%clk 0:00:04]}  Rhg1+ {[%clk 0:00:07]} 52. Kf3 {[%clk 0:00:03]}  Rb1 {[%clk 0:00:06]} 53. a5 {[%clk 0:00:03]}  Rgc1 {[%clk 0:00:06]} 54. a6 {[%clk 0:00:03]}  Ra1 {[%clk 0:00:06]} 55. Rb7+ {[%clk 0:00:02]}  Kd6 {[%clk 0:00:07]} 56. a7 {[%clk 0:00:03]}  Rcb1 {[%clk 0:00:07]} 57. b5 {[%clk 0:00:03]}  Ra3+ {[%clk 0:00:07]} 58. Kg4 {[%clk 0:00:03]}  Rb2 {[%clk 0:00:07]} 59. b6 {[%clk 0:00:02]}  Kc5 {[%clk 0:00:07]} 60. Rc7+ {[%clk 0:00:02]}  Kxb6 {[%clk 0:00:07]} 61. Rc6+ {[%clk 0:00:01]}  Kxa7 {[%clk 0:00:07]} 62. Rc7+ {[%clk 0:00:01]}  Kb6 {[%clk 0:00:07]} 63. Rb7+ {[%clk 0:00:01]}  Kc5 {[%clk 0:00:08]} 64. Rxb2 {[%clk 0:00:02]}  Rd3 {[%clk 0:00:07]} 65. Rc2+ {[%clk 0:00:03]}  Kd4 {[%clk 0:00:08]} 66. Rc6 {[%clk 0:00:03]}  Rd2 {[%clk 0:00:08]} 67. f3 {[%clk 0:00:03]}  Rf2 {[%clk 0:00:08]} 68. Rf6 {[%clk 0:00:02]}  Ke3 {[%clk 0:00:08]} 69. Rf8 {[%clk 0:00:03]}  Kd4 {[%clk 0:00:08]} 70. Rf5 {[%clk 0:00:03]}  Kd3 {[%clk 0:00:08]} 71. Rxe5 {[%clk 0:00:02]}  Ke3 {[%clk 0:00:09]} 72. Rf5 {[%clk 0:00:03]}  Re2 {[%clk 0:00:09]} 73. Rf8 {[%clk 0:00:04]}  Rd2 {[%clk 0:00:08]} 74. f4 {[%clk 0:00:04]}  Kd4 {[%clk 0:00:08]} 75. f5 {[%clk 0:00:05]}  Rf2 {[%clk 0:00:09]} 76. f6 {[%clk 0:00:05]}  Ke5 {[%clk 0:00:09]} 77. f7 {[%clk 0:00:05]} 1-0


[Site "https://www.chess.com"]

[Event "Titled Tuesday Blitz July 25 Early 2023"]
[White "Senft, Sean"]
[Black "Papayan, Oleg"]
[WhiteFideId "2044960"]
[BlackFideId "4193911"]
[WhiteElo "2269"]
[BlackElo "2478"]
[Result "1-0"]
[Round "2"]
[TimeControl "180+2"]
[Date "2023.07.25"]
[WhiteClock "0:00:26"]
[BlackClock "0:00:01"]
[Board "205"]

1. d4 {[%clk 0:03:00]}  Nf6 {[%clk 0:02:59]} 2. c4 {[%clk 0:03:01]}  e6 {[%clk 0:02:58]} 3. Nc3 {[%clk 0:03:02]}  Bb4 {[%clk 0:02:58]} 4. Nf3 {[%clk 0:03:03]}  O-O {[%clk 0:02:58]} 5. Bg5 {[%clk 0:03:03]}  c5 {[%clk 0:02:55]} 6. e3 {[%clk 0:03:03]}  Qa5 {[%clk 0:02:50]} 7. Bxf6 {[%clk 0:03:00]}  Bxc3+ {[%clk 0:02:50]} 8. bxc3 {[%clk 0:03:01]}  Qxc3+ {[%clk 0:02:51]} 9. Nd2 {[%clk 0:03:01]}  gxf6 {[%clk 0:02:51]} 10. Rc1 {[%clk 0:02:59]}  Qa5 {[%clk 0:02:51]} 11. Qg4+ {[%clk 0:02:53]}  Kh8 {[%clk 0:02:51]} 12. Qf4 {[%clk 0:02:48]}  f5 {[%clk 0:02:41]} 13. g4 {[%clk 0:02:38]}  cxd4 {[%clk 0:02:40]} 14. c5 {[%clk 0:02:35]}  dxe3 {[%clk 0:02:35]} 15. fxe3 {[%clk 0:02:34]}  Nc6 {[%clk 0:02:16]} 16. gxf5 {[%clk 0:02:31]}  exf5 {[%clk 0:01:28]} 17. Qxf5 {[%clk 0:02:29]}  f6 {[%clk 0:01:16]} 18. Bd3 {[%clk 0:02:25]}  Rf7 {[%clk 0:01:16]} 19. Rg1 {[%clk 0:02:06]}  Ne5 {[%clk 0:01:03]} 20. Qe4 {[%clk 0:01:09]}  d5 {[%clk 0:00:55]} 21. cxd6 {[%clk 0:01:07]}  Be6 {[%clk 0:00:33]} 22. Ke2 {[%clk 0:01:00]}  Rd8 {[%clk 0:00:24]} 23. Nc4 {[%clk 0:00:35]}  Bxc4 {[%clk 0:00:07]} 24. Bxc4 {[%clk 0:00:35]}  Rfd7 {[%clk 0:00:02]} 25. Qg2 {[%clk 0:00:26]}  Qa3 {[%clk 0:00:01]} 26. Qg8+ {[%clk 0:00:26]} 1-0


[Site "https://www.chess.com"]

[Event "Titled Tuesday Blitz July 25 Early 2023"]
[White "Koutlas, Nikolaos"]
[Black "Samaganova, Aleksandra"]
[WhiteFideId "25827138"]
[BlackFideId "13800221"]
[WhiteElo "2476"]
[BlackElo "2263"]
[Result "1-0"]
[Round "2"]
[TimeControl "180+2"]
[Date "2023.07.25"]
[WhiteClock "0:01:28"]
[BlackClock "0:00:06"]
[Board "207"]

1. Nf3 {[%clk 0:03:00]}  d5 {[%clk 0:02:55]} 2. b3 {[%clk 0:03:00]}  Nf6 {[%clk 0:02:52]} 3. Bb2 {[%clk 0:02:58]}  Bf5 {[%clk 0:02:44]} 4. g3 {[%clk 0:02:57]}  e6 {[%clk 0:02:43]} 5. Bg2 {[%clk 0:02:56]}  Bd6 {[%clk 0:02:38]} 6. O-O {[%clk 0:02:54]}  O-O {[%clk 0:02:38]} 7. c4 {[%clk 0:02:52]}  c5 {[%clk 0:02:35]} 8. d4 {[%clk 0:02:51]}  cxd4 {[%clk 0:02:29]} 9. Nxd4 {[%clk 0:02:50]}  Bxb1 {[%clk 0:02:20]} 10. Rxb1 {[%clk 0:02:49]}  Nbd7 {[%clk 0:02:16]} 11. cxd5 {[%clk 0:02:49]}  Nxd5 {[%clk 0:02:15]} 12. Nxe6 {[%clk 0:02:46]}  fxe6 {[%clk 0:01:52]} 13. Bxd5 {[%clk 0:02:45]}  Nc5 {[%clk 0:01:37]} 14. Bc4 {[%clk 0:02:34]}  Qe7 {[%clk 0:01:32]} 15. Qd4 {[%clk 0:02:23]}  Rad8 {[%clk 0:01:21]} 16. Qg4 {[%clk 0:02:22]}  Rde8 {[%clk 0:00:57]} 17. Rbd1 {[%clk 0:02:14]}  Bc7 {[%clk 0:00:50]} 18. b4 {[%clk 0:02:07]}  Na4 {[%clk 0:00:48]} 19. Ba1 {[%clk 0:02:00]}  Nb6 {[%clk 0:00:41]} 20. Bxe6+ {[%clk 0:01:56]}  Kh8 {[%clk 0:00:40]} 21. Bb3 {[%clk 0:01:54]}  Be5 {[%clk 0:00:34]} 22. Bxe5 {[%clk 0:01:48]}  Qxe5 {[%clk 0:00:34]} 23. e3 {[%clk 0:01:47]}  h6 {[%clk 0:00:30]} 24. Bc2 {[%clk 0:01:42]}  Rf6 {[%clk 0:00:26]} 25. Rd4 {[%clk 0:01:41]}  Qc7 {[%clk 0:00:13]} 26. Bb1 {[%clk 0:01:35]}  Rd8 {[%clk 0:00:08]} 27. Qe4 {[%clk 0:01:29]}  Rxd4 {[%clk 0:00:06]} 28. Qh7# {[%clk 0:01:28]} 1-0


[Site "https://www.chess.com"]

[Event "Titled Tuesday Blitz July 25 Early 2023"]
[White "Onufrienko, Vladislav"]
[Black "Kohler, Aran"]
[WhiteFideId "13804332"]
[BlackFideId "1002856"]
[WhiteElo "2474"]
[BlackElo "2252"]
[Result "1-0"]
[Round "2"]
[TimeControl "180+2"]
[Date "2023.07.25"]
[WhiteClock "0:00:57"]
[BlackClock "0:00:40"]
[Board "210"]

1. e4 {[%clk 0:03:00]}  c6 {[%clk 0:02:59]} 2. d4 {[%clk 0:03:00]}  d5 {[%clk 0:02:59]} 3. e5 {[%clk 0:03:01]}  Bf5 {[%clk 0:02:57]} 4. Nf3 {[%clk 0:03:01]}  a6 {[%clk 0:02:53]} 5. Be2 {[%clk 0:03:02]}  h6 {[%clk 0:02:48]} 6. O-O {[%clk 0:03:03]}  e6 {[%clk 0:02:48]} 7. Be3 {[%clk 0:03:03]}  g5 {[%clk 0:02:42]} 8. a4 {[%clk 0:03:02]}  Nd7 {[%clk 0:02:41]} 9. c4 {[%clk 0:02:54]}  dxc4 {[%clk 0:02:39]} 10. Bxc4 {[%clk 0:02:55]}  Ne7 {[%clk 0:02:38]} 11. Nc3 {[%clk 0:02:55]}  Nd5 {[%clk 0:02:38]} 12. a5 {[%clk 0:02:52]}  g4 {[%clk 0:02:28]} 13. Ne1 {[%clk 0:02:48]}  h5 {[%clk 0:02:24]} 14. Bd3 {[%clk 0:02:40]}  Bb4 {[%clk 0:02:11]} 15. Bxf5 {[%clk 0:02:37]}  exf5 {[%clk 0:02:03]} 16. Nxd5 {[%clk 0:02:37]}  cxd5 {[%clk 0:02:01]} 17. Nd3 {[%clk 0:02:27]}  Be7 {[%clk 0:01:47]} 18. Nf4 {[%clk 0:02:26]}  Nf8 {[%clk 0:01:35]} 19. Qb3 {[%clk 0:02:26]}  Ne6 {[%clk 0:01:34]} 20. Nxd5 {[%clk 0:02:25]}  O-O {[%clk 0:01:23]} 21. Rfd1 {[%clk 0:02:12]}  Rc8 {[%clk 0:01:18]} 22. Qxb7 {[%clk 0:02:00]}  Rb8 {[%clk 0:01:16]} 23. Nxe7+ {[%clk 0:01:58]}  Kh8 {[%clk 0:01:13]} 24. Qa7 {[%clk 0:01:35]}  Ra8 {[%clk 0:01:11]} 25. Qb7 {[%clk 0:01:27]}  f4 {[%clk 0:01:05]} 26. Nc6 {[%clk 0:01:18]}  Qg5 {[%clk 0:01:02]} 27. Bd2 {[%clk 0:01:15]}  h4 {[%clk 0:00:56]} 28. d5 {[%clk 0:01:13]}  Ng7 {[%clk 0:00:56]} 29. Qb4 {[%clk 0:01:05]}  g3 {[%clk 0:00:55]} 30. Qxf4 {[%clk 0:01:05]}  gxf2+ {[%clk 0:00:47]} 31. Qxf2 {[%clk 0:01:03]}  Qh5 {[%clk 0:00:45]} 32. Rf1 {[%clk 0:00:58]}  Rac8 {[%clk 0:00:40]} 33. Ra4 {[%clk 0:00:57]} 1-0


[Site "https://www.chess.com"]